bitfinex/quotes_BTCUSD_20240929
["timestamp","ask_amount","ask_price","bid_price","bid_amount"]
[1727611446150,0.02797076,65881.0,65880.0,0.356245]
[1727611446389,0.00175477,65881.0,65880.0,0.356245]
[1727611446596,0.02797076,65881.0,65880.0,0.356245]
[1727611446802,0.00175477,65881.0,65880.0,0.356245]
[1727611447005,0.02797076,65881.0,65880.0,0.356245]
[1727611447253,0.00175477,65881.0,65880.0,0.356245]
[1727611449732,0.02797076,65881.0,65880.0,0.356245]
[1727611451674,0.02797076,65881.0,65880.0,0.029654]
[1727611452299,0.02797076,65881.0,65880.0,0.181445]
[1727611454239,0.00175477,65881.0,65880.0,0.181445]
[1727611455378,0.00175477,65881.0,65880.0,0.029654]
[1727611455600,0.04746445,65881.0,65880.0,0.181445]
[1727611456012,0.07367918,65881.0,65880.0,0.181445]
[1727611456670,0.0279695,65881.0,65880.0,0.181445]
[1727611457525,0.00175477,65881.0,65880.0,0.181445]
[1727611459321,0.0279695,65881.0,65880.0,0.181445]
[1727611459558,0.00175477,65881.0,65880.0,0.181445]
[1727611459775,0.00175477,65881.0,65880.0,0.029654]
[1727611460010,0.1797575,65881.0,65880.0,0.029654]
[1727611460289,0.15354277,65881.0,65880.0,0.029654]
[1727611460517,0.1797575,65881.0,65880.0,0.029654]
[1727611464103,0.22536899,65881.0,65880.0,0.029654]
[1727611464448,0.22535804,65881.0,65880.0,0.029654]
[1727611465508,0.1797575,65881.0,65880.0,0.029654]
[1727611466329,0.22534164,65881.0,65880.0,0.029654]
[1727611467310,0.1797575,65881.0,65880.0,0.029654]
[1727611467511,0.2905742,65881.0,65880.0,0.029654]
[1727611474626,0.1797575,65881.0,65880.0,0.029654]
[1727611502247,0.1797575,65881.0,65880.0,0.202754]
[1727611503342,0.0279695,65881.0,65880.0,0.202754]
[1727611503562,0.0279695,65881.0,65880.0,0.354545]
[1727611504028,0.00175477,65881.0,65880.0,0.354545]
[1727611505645,0.00175477,65881.0,65880.0,0.377545]
[1727611505909,0.00175477,65881.0,65880.0,0.6843566]
[1727611507036,0.00175477,65881.0,65880.0,0.6703566]
[1727611507253,0.00175477,65881.0,65880.0,0.6843566]
[1727611507465,0.00175477,65881.0,65880.0,0.6703566]
[1727611507939,0.00175477,65881.0,65880.0,0.6843566]
[1727611508177,0.00175477,65881.0,65880.0,0.6703566]
[1727611508383,0.07405002,65890.0,65889.0,0.34787]
[1727611508628,0.07405002,65890.0,65889.0,0.5905728]
[1727611509966,0.07405002,65890.0,65889.0,0.6045728]
[1727611510454,0.07405002,65890.0,65889.0,0.5905728]
[1727611510698,0.07405002,65890.0,65889.0,0.6045728]
[1727611511857,0.07405002,65890.0,65889.0,0.53115794]
[1727611512326,0.07405002,65890.0,65889.0,0.51715794]
[1727611512987,0.07405002,65890.0,65889.0,0.53115794]
[1727611513449,0.07405002,65890.0,65889.0,0.51715794]
[1727611513930,0.07405002,65890.0,65889.0,0.53115794]
[1727611514335,0.07405002,65890.0,65889.0,0.64498493]
[1727611514580,0.07405002,65890.0,65889.0,0.65898493]
[1727611515015,0.07405002,65890.0,65889.0,0.64498493]
[1727611515260,0.07405002,65890.0,65889.0,0.61698493]
[1727611515492,0.07405002,65890.0,65889.0,0.64498493]
[1727611516157,0.07405002,65890.0,65889.0,0.53115794]
[1727611516819,0.07405002,65890.0,65889.0,0.51715794]
[1727611517043,0.07487702,65890.0,65889.0,0.53115794]
[1727611521993,0.09452056,65890.0,65889.0,0.53115794]
[1727611523296,0.07487702,65890.0,65889.0,0.53115794]
[1727611525008,0.07487702,65890.0,65889.0,0.50815794]
[1727611530432,0.07487702,65890.0,65889.0,0.50981194]
[1727611531905,0.09093161,65890.0,65889.0,0.50981194]
[1727611532106,0.07487702,65890.0,65889.0,0.50981194]
[1727611534728,0.09093353,65890.0,65889.0,0.50981194]
[1727611535553,0.09093353,65890.0,65889.0,0.029654]
[1727611537971,0.09093353,65890.0,65889.0,0.181424]
[1727611539383,0.09093353,65890.0,65889.0,0.029654]
[1727611539591,0.09093353,65890.0,65889.0,0.181424]
[1727611544851,0.09093153,65890.0,65889.0,0.181424]
[1727611549043,0.09093153,65890.0,65889.0,0.21944165]
[1727611549269,0.09093153,65890.0,65889.0,0.181424]
[1727611552329,0.09093153,65890.0,65889.0,0.21944165]
[1727611552548,0.09093153,65890.0,65889.0,0.181424]
[1727611581717,0.09093153,65890.0,65889.0,0.281224]
[1727611584396,0.09093153,65890.0,65889.0,0.356324]
[1727611586752,0.07487702,65890.0,65889.0,0.356324]
[1727611591873,0.09093485,65890.0,65889.0,0.356324]
[1727611592318,0.07487702,65890.0,65889.0,0.356324]
[1727611593872,0.07487702,65890.0,65889.0,0.40384473]
[1727611595678,0.07397621,65890.0,65889.0,0.40384473]
[1727611596113,0.07397621,65890.0,65889.0,0.22894473]
[1727611596552,0.09003181,65890.0,65889.0,0.22894473]
[1727611596760,0.07397621,65890.0,65889.0,0.22894473]
[1727611596982,0.09003181,65890.0,65889.0,0.22894473]
[1727611603878,0.09003181,65890.0,65889.0,0.07717473]
[1727611603879,0.24179981,65890.0,65889.0,0.07717473]
[1727611608548,0.24179981,65890.0,65889.0,0.029654]
[1727611608749,0.24179981,65890.0,65889.0,0.015654]
[1727611609170,0.24179981,65890.0,65889.0,0.07717766]
[1727611609510,0.24179981,65890.0,65889.0,0.04917766]
[1727611609932,0.24179981,65890.0,65889.0,0.029654]
[1727611610132,0.24179981,65890.0,65889.0,0.015654]
[1727611610338,0.24179981,65890.0,65889.0,0.029654]
[1727611621518,0.33239981,65890.0,65889.0,0.029654]
[1727611622633,0.48525934,65890.0,65889.0,0.029654]
[1727611623475,0.33239981,65890.0,65889.0,0.029654]
[1727611627962,0.24179981,65890.0,65889.0,0.029654]
[1727611640619,0.28737575,65890.0,65889.0,0.029654]
[1727611643029,0.29140221,65890.0,65889.0,0.029654]
[1727611645173,0.24582627,65890.0,65889.0,0.029654]
[1727611645390,0.43222608,65890.0,65889.0,0.029654]
[1727611647285,0.38664483,65890.0,65889.0,0.029654]
[1727611647502,0.43222979,65890.0,65889.0,0.029654]
[1727611648128,0.45601704,65890.0,65889.0,0.029654]
[1727611648337,0.41043208,65890.0,65889.0,0.029654]
[1727611652485,0.47881517,65890.0,65889.0,0.029654]
[1727611654824,0.47881922,65890.0,65889.0,0.029654]
[1727611657850,0.33800066,65890.0,65889.0,0.029654]
[1727611659670,0.26961352,65890.0,65889.0,0.029654]
[1727611659877,0.33800883,65890.0,65889.0,0.029654]
[1727611662528,0.35303309,65890.0,65889.0,0.029654]
[1727611662961,0.28463778,65890.0,65889.0,0.029654]
[1727611663618,0.43390265,65890.0,65889.0,0.029654]
[1727611670746,0.50230527,65890.0,65889.0,0.029654]
[1727611673139,0.3530404,65890.0,65889.0,0.029654]
[1727611673754,0.28463778,65890.0,65889.0,0.029654]
[1727611673940,0.35304293,65890.0,65889.0,0.029654]
[1727611674412,0.35304556,65890.0,65889.0,0.029654]
[1727611676327,0.28463778,65890.0,65889.0,0.029654]
[1727611676788,0.42484639,65890.0,65889.0,0.029654]
[1727611678156,0.28463778,65890.0,65889.0,0.029654]
[1727611681724,0.37584816,65890.0,65889.0,0.029654]
[1727611682160,0.28463778,65890.0,65889.0,0.029654]
[1727611682369,0.37584816,65890.0,65889.0,0.029654]
[1727611682839,0.28463778,65890.0,65889.0,0.029654]
[1727611683062,0.42484639,65890.0,65889.0,0.029654]
[1727611683338,0.51605677,65890.0,65889.0,0.029654]
[1727611683997,0.49226952,65890.0,65889.0,0.029654]
[1727611684457,0.40105914,65890.0,65889.0,0.029654]
[1727611685363,0.49226952,65890.0,65889.0,0.029654]
[1727611685627,0.35206091,65890.0,65889.0,0.029654]
[1727611686975,0.37584815,65890.0,65889.0,0.029654]
[1727611694333,0.35206091,65890.0,65889.0,0.029654]
[1727611697339,0.35209162,65890.0,65889.0,0.029654]
[1727611697819,0.48992842,65890.0,65889.0,0.029654]
[1727611699611,0.4876261,65890.0,65889.0,0.029654]
[1727611701976,0.3497893,65890.0,65889.0,0.029654]
[1727611702208,0.34978958,65890.0,65889.0,0.029654]
[1727611706160,0.28233592,65890.0,65889.0,0.029654]
[1727611706397,0.39638764,65890.0,65889.0,0.029654]
[1727611707291,0.37259993,65890.0,65889.0,0.001654]
[1727611707511,0.37259993,65890.0,65889.0,0.015654]
[1727611707730,0.37259993,65890.0,65889.0,0.029654]
[1727611707948,0.52898799,65890.0,65889.0,0.029654]
[1727611708164,0.52898799,65890.0,65889.0,0.015654]
[1727611708388,0.52898799,65890.0,65889.0,0.013654]
[1727611708891,0.52898799,65890.0,65889.0,0.012654]
[1727611709970,0.52898799,65890.0,65889.0,0.001654]
[1727611709971,0.53398799,65890.0,65889.0,0.001654]
[1727611710216,0.41993627,65890.0,65889.0,0.001654]
[1727611710426,0.41993627,65890.0,65889.0,0.016654]
[1727611710636,0.41993627,65890.0,65889.0,0.009654]
[1727611710841,0.41993627,65890.0,65889.0,0.001654]
[1727611711061,0.41993627,65890.0,65889.0,0.014654]
[1727611711735,0.72552545,65890.0,65889.0,0.014654]
[1727611712184,0.72752545,65890.0,65889.0,0.014654]
[1727611712454,0.72752545,65890.0,65880.0,0.001654]
[1727611712455,0.258788,65881.0,65880.0,0.001654]
[1727611712666,0.44664893,65881.0,65880.0,0.001654]
[1727611712891,0.46666152,65881.0,65880.0,0.001654]
[1727611714102,0.46766152,65881.0,65880.0,0.001654]
[1727611714334,0.46666152,65881.0,65880.0,0.001654]
[1727611714538,0.59569944,65881.0,65880.0,0.001654]
[1727611714770,0.59669944,65881.0,65880.0,0.001654]
[1727611715033,0.59369944,65881.0,65880.0,0.001654]
[1727611715481,0.59569944,65881.0,65880.0,0.001654]
[1727611716374,0.60569944,65881.0,65880.0,0.001654]
[1727611716832,0.63549329,65881.0,65880.0,0.002654]
[1727611717296,0.74327265,65881.0,65880.0,0.001654]
[1727611717527,0.74227265,65881.0,65880.0,0.001654]
[1727611717749,0.62749329,65881.0,65880.0,0.001654]
[1727611718222,0.60569944,65881.0,65880.0,0.004654]
[1727611718401,0.71745219,65881.0,65880.0,0.004654]
[1727611718609,0.71745219,65881.0,65880.0,0.001654]
[1727611718610,0.62749328,65881.0,65880.0,0.001654]
[1727611718856,0.63049328,65881.0,65880.0,0.001654]
[1727611719066,0.63149328,65881.0,65880.0,0.001654]
[1727611719295,0.72247768,65881.0,65880.0,0.001654]
[1727611719938,0.71947768,65881.0,65880.0,0.001654]
[1727611720397,0.72047768,65881.0,65880.0,0.001654]
[1727611720620,0.71847768,65881.0,65880.0,0.001654]
[1727611720830,0.72047768,65881.0,65880.0,0.002654]
[1727611721252,0.72046039,65881.0,65880.0,0.002654]
[1727611721488,0.72046039,65881.0,65880.0,0.001654]
[1727611722360,0.60569944,65881.0,65880.0,0.001654]
[1727611723450,0.67389898,65881.0,65880.0,0.001654]
[1727611723879,0.69769272,65881.0,65880.0,0.001654]
[1727611725521,0.69767816,65881.0,65880.0,0.001654]
[1727611727656,0.62949318,65881.0,65880.0,0.001654]
[1727611728811,0.69767816,65881.0,65880.0,0.001654]
[1727611729441,0.62949318,65881.0,65880.0,0.001654]
[1727611730333,0.67493875,65881.0,65880.0,0.001654]
[1727611731221,0.62949318,65881.0,65880.0,0.001654]
[1727611733347,0.67493443,65881.0,65880.0,0.001654]
[1727611734329,0.67293443,65881.0,65880.0,0.001654]
[1727611734556,0.57354069,65881.0,65880.0,0.001654]
[1727611735257,0.57554069,65881.0,65880.0,0.001654]
[1727611735719,0.59933406,65881.0,65880.0,0.001654]
[1727611735953,0.53009944,65881.0,65880.0,0.001654]
[1727611736167,0.5755409,65881.0,65880.0,0.001654]
[1727611736382,0.53009944,65881.0,65880.0,0.001654]
[1727611737437,0.43189944,65881.0,65880.0,0.001654]
[1727611738929,0.45569264,65881.0,65880.0,0.001654]
[1727611739135,0.37409971,65881.0,65880.0,0.001654]
[1727611740764,0.37410357,65881.0,65880.0,0.001654]
[1727611741397,0.37410577,65881.0,65880.0,0.001654]
[1727611741759,0.32865472,65881.0,65880.0,0.001654]
[1727611741994,0.37410674,65881.0,65880.0,0.001654]
[1727611742208,0.32865472,65881.0,65880.0,0.172654]
[1727611742413,0.30486152,65881.0,65880.0,0.172654]
[1727611742594,0.35031737,65881.0,65880.0,0.172654]
[1727611743007,0.37411003,65881.0,65880.0,0.092454]
[1727611743220,0.37411003,65881.0,65880.0,0.001654]
[1727611743429,0.53006024,65881.0,65880.0,0.001654]
[1727611743635,0.48460439,65881.0,65880.0,0.001654]
[1727611744461,0.46081173,65881.0,65880.0,0.001654]
[1727611745294,0.528985,65881.0,65880.0,0.001654]
[1727611747427,0.46081173,65881.0,65880.0,0.001654]
[1727611747664,0.48460446,65881.0,65880.0,0.001654]
[1727611748553,0.57550216,65881.0,65880.0,0.001654]
[1727611748952,0.57558725,65881.0,65880.0,0.001654]
[1727611750275,0.48460446,65881.0,65880.0,0.001654]
[1727611751383,0.59833295,65881.0,65880.0,0.001654]
[1727611752281,0.48460446,65881.0,65880.0,0.001654]
[1727611752501,0.48460446,65881.0,65880.0,0.001544]
[1727611756192,0.46081173,65881.0,65880.0,0.001544]
[1727611763598,0.48460432,65881.0,65880.0,0.001544]
[1727611764881,0.46081173,65881.0,65880.0,0.001544]
[1727611766584,0.46163973,65881.0,65880.0,0.001544]
[1727611767937,0.4854323,65881.0,65880.0,0.001544]
[1727611777107,0.46163973,65881.0,65880.0,0.001544]
[1727611780253,0.46163973,65881.0,65880.0,0.178444]
[1727611783255,0.45163973,65881.0,65880.0,0.178444]
[1727611783599,0.46163973,65881.0,65880.0,0.178444]
[1727611784006,0.45163973,65881.0,65880.0,0.178444]
[1727611784157,0.46163973,65881.0,65880.0,0.178444]
[1727611788890,0.48543203,65881.0,65880.0,0.178444]
[1727611790437,0.32948182,65881.0,65880.0,0.178444]
[1727611797990,0.30568952,65881.0,65880.0,0.178444]
[1727611802417,0.30568952,65881.0,65880.0,0.083044]
[1727611803131,0.29568952,65881.0,65880.0,0.083044]
[1727611809749,0.3194819,65881.0,65880.0,0.083044]
[1727611809995,0.45910321,65881.0,65880.0,0.083044]
[1727611811414,0.43531083,65881.0,65880.0,0.083044]
[1727611818350,0.43731083,65881.0,65880.0,0.083044]
[1727611818810,0.43531083,65881.0,65880.0,0.083044]
[1727611819064,0.45910324,65881.0,65880.0,0.083044]
[1727611823372,0.46110324,65881.0,65880.0,0.083044]
[1727611824693,0.45910324,65881.0,65880.0,0.083044]
[1727611825425,0.45810324,65881.0,65880.0,0.083044]
[1727611826181,0.31848193,65881.0,65880.0,0.083044]
[1727611828205,0.71758851,65881.0,65880.0,0.001544]
[1727611828426,0.50268193,65881.0,65880.0,0.001544]
[1727611828656,0.151816,65869.0,65868.0,0.22690658]
[1727611828889,0.18917446,65869.0,65868.0,0.22690658]
[1727611829131,0.18917446,65869.0,65867.0,0.0991]
[1727611829132,0.151818,65868.0,65867.0,0.0991]
[1727611829351,0.1693192,65868.0,65867.0,0.0991]
[1727611829569,0.3134279,65868.0,65867.0,0.0991]
[1727611830741,0.18922395,65868.0,65867.0,0.0991]
[1727611831619,0.19122395,65868.0,65867.0,0.1171]
[1727611831842,0.21501925,65868.0,65867.0,0.1171]
[1727611832065,0.21301925,65868.0,65867.0,0.0991]
[1727611832292,0.21401925,65868.0,65867.0,0.1071]
[1727611832519,0.21501925,65868.0,65867.0,0.1161]
[1727611832749,0.34180172,65868.0,65867.0,0.1161]
[1727611832974,0.31800642,65868.0,65867.0,0.1161]
[1727611836985,0.31800642,65868.0,65867.0,0.117754]
[1727611837195,0.43196121,65868.0,65867.0,0.117754]
[1727611837594,0.30517874,65868.0,65867.0,0.117754]
[1727611839810,0.19122395,65868.0,65867.0,0.117754]
[1727611840484,0.21501933,65868.0,65867.0,0.117754]
[1727611841170,0.32895898,65868.0,65867.0,0.117754]
[1727611841421,0.55586556,65868.0,65867.0,0.018654]
[1727611841620,0.33950373,65868.0,65867.0,0.018654]
[1727611842874,0.44650373,65868.0,65867.0,0.018654]
[1727611843738,0.44650373,65868.0,65867.0,0.010654]
[1727611843739,0.44550373,65868.0,65867.0,0.010654]
[1727611843894,0.44550373,65868.0,65867.0,0.013654]
[1727611844294,0.44550373,65868.0,65867.0,0.004654]
[1727611844295,0.44450373,65868.0,65867.0,0.004654]
[1727611844764,0.44450373,65868.0,65867.0,0.009654]
[1727611845181,0.44450373,65868.0,65867.0,0.001654]
[1727611845598,0.44650373,65868.0,65867.0,0.001654]
[1727611845796,0.44550373,65868.0,65867.0,0.001654]
[1727611846044,0.42470835,65868.0,65867.0,0.001654]
[1727611849315,0.44850743,65868.0,65867.0,0.001654]
[1727611851186,0.45115242,65868.0,65867.0,0.001654]
[1727611851574,0.44850743,65868.0,65867.0,0.001654]
[1727611852449,0.42470835,65868.0,65867.0,0.001654]
[1727611853497,0.44850746,65868.0,65867.0,0.001654]
[1727611856663,0.42470835,65868.0,65867.0,0.001654]
[1727611859685,0.44850742,65868.0,65867.0,0.001654]
[1727611860329,0.60860742,65868.0,65867.0,0.001654]
[1727611860543,0.44850742,65868.0,65867.0,0.001654]
[1727611860965,0.44650742,65868.0,65867.0,0.001654]
[1727611861435,0.32402302,65868.0,65867.0,0.001654]
[1727611862323,0.30022395,65868.0,65867.0,0.001654]
[1727611870062,0.3240231,65868.0,65867.0,0.001654]
[1727611871323,0.43679355,65868.0,65867.0,0.001654]
[1727611872173,0.43943855,65868.0,65867.0,0.001654]
[1727611872381,0.59318161,65868.0,65867.0,0.001654]
[1727611873220,0.45661201,65868.0,65867.0,0.001654]
[1727611875952,0.48041119,65868.0,65867.0,0.001654]
[1727611880324,0.49041119,65868.0,65867.0,0.001654]
[1727611880966,0.46661201,65868.0,65867.0,0.001654]
[1727611884006,0.49041162,65868.0,65867.0,0.001654]
[1727611884913,0.64427299,65868.0,65867.0,0.001654]
[1727611885582,0.62047338,65868.0,65867.0,0.001654]
[1727611885796,0.62054468,65868.0,65867.0,0.001654]
[1727611886214,0.46661201,65868.0,65867.0,0.001654]
[1727611887999,0.48961201,65868.0,65867.0,0.001654]
[1727611890029,0.51341214,65868.0,65867.0,0.001654]
[1727611892454,0.48961201,65868.0,65867.0,0.001654]
[1727611900352,0.51341224,65868.0,65867.0,0.001654]
[1727611901417,0.48961201,65868.0,65867.0,0.001654]
[1727611907754,0.50060525,65868.0,65867.0,0.001654]
[1727611908823,0.52440571,65868.0,65867.0,0.001654]
[1727611909949,0.50060525,65868.0,65867.0,0.001654]
[1727611911250,0.50033104,65868.0,65867.0,0.001654]
[1727611913016,0.52413162,65868.0,65867.0,0.001654]
[1727611913220,0.52677574,65868.0,65867.0,0.001654]
[1727611913713,0.52413162,65868.0,65867.0,0.001654]
[1727611917422,0.50033104,65868.0,65867.0,0.001654]
[1727611920704,0.5241315,65868.0,65867.0,0.001654]
[1727611921590,0.3547502,65868.0,65867.0,0.001654]
[1727611921812,0.3547502,65868.0,65867.0,0.092154]
[1727611922029,0.30794974,65868.0,65867.0,0.092154]
[1727611922482,0.30794974,65868.0,65867.0,0.171354]
[1727611925028,0.33174964,65868.0,65867.0,0.171354]
[1727611928635,0.37135999,65868.0,65867.0,0.171354]
[1727611928870,0.33174964,65868.0,65867.0,0.171354]
[1727611931814,0.30794974,65868.0,65867.0,0.171354]
[1727611932385,0.30877674,65868.0,65867.0,0.171354]
[1727611935181,0.33257675,65868.0,65867.0,0.171354]
[1727611935683,0.45822419,65868.0,65867.0,0.171354]
[1727611937569,0.45822419,65868.0,65867.0,0.080854]
[1727611940569,0.45822419,65868.0,65867.0,0.001654]
[1727611941801,0.43442418,65868.0,65867.0,0.001654]
[1727611942216,0.43642418,65868.0,65867.0,0.001654]
[1727611942645,0.43442418,65868.0,65867.0,0.001654]
[1727611945079,0.45822437,65868.0,65867.0,0.001654]
[1727611951968,0.43442418,65868.0,65867.0,0.001654]
[1727611952859,0.30831339,65868.0,65867.0,0.001654]
[1727611955273,0.33211355,65868.0,65867.0,0.001654]
[1727611960697,0.33411355,65868.0,65867.0,0.001654]
[1727611962461,0.33211355,65868.0,65867.0,0.001654]
[1727611963725,0.30831339,65868.0,65867.0,0.001654]
[1727611966768,0.33211354,65868.0,65867.0,0.001654]
[1727611968057,0.45797917,65868.0,65867.0,0.001654]
[1727611969379,0.45997917,65868.0,65867.0,0.001654]
[1727611969603,0.45797917,65868.0,65867.0,0.001654]
[1727611969834,0.45697917,65868.0,65867.0,0.001654]
[1727611970273,0.43617902,65868.0,65867.0,0.001654]
[1727611970519,0.43317902,65868.0,65867.0,0.001654]
[1727611970938,0.43517902,65868.0,65867.0,0.001654]
[1727611971200,0.43317902,65868.0,65867.0,0.001654]
[1727611971631,0.43217902,65868.0,65867.0,0.001654]
[1727611973143,0.45597922,65868.0,65867.0,0.001654]
[1727611978387,0.45797922,65868.0,65867.0,0.001654]
[1727611978797,0.43417902,65868.0,65867.0,0.001654]
[1727611981329,0.30631339,65868.0,65867.0,0.001654]
[1727611981959,0.33011356,65868.0,65867.0,0.001654]
[1727611982603,0.30631339,65868.0,65867.0,0.001654]
[1727611985815,0.33011364,65868.0,65867.0,0.001654]
[1727611987163,0.33211364,65868.0,65867.0,0.001654]
[1727611987372,0.45777928,65868.0,65867.0,0.001654]
[1727611988208,0.45577928,65868.0,65867.0,0.001654]
[1727611989923,0.45777928,65868.0,65867.0,0.001654]
[1727611992567,0.43397903,65868.0,65867.0,0.001654]
[1727611992795,0.43197903,65868.0,65867.0,0.001654]
[1727611993228,0.43397903,65868.0,65867.0,0.001654]
[1727611993904,0.43197903,65868.0,65867.0,0.001654]
[1727611994126,0.43397903,65868.0,65867.0,0.001654]
[1727611994337,0.43197903,65868.0,65867.0,0.001654]
[1727611995887,0.45577925,65868.0,65867.0,0.001654]
[1727611996638,0.45777925,65868.0,65867.0,0.001654]
[1727611996937,0.43397903,65868.0,65867.0,0.001654]
[1727611997355,0.43197903,65868.0,65867.0,0.001654]
[1727611999983,0.45577922,65868.0,65867.0,0.001654]
[1727612000196,0.45777922,65868.0,65867.0,0.001654]
[1727612000894,0.45577922,65868.0,65867.0,0.001654]
[1727612003591,0.33011358,65868.0,65867.0,0.001654]
[1727612003802,0.30631339,65868.0,65867.0,0.001654]
[1727612007110,0.33011357,65868.0,65867.0,0.001654]
[1727612009763,0.31020882,65868.0,65867.0,0.001654]
[1727612010224,0.33237653,65868.0,65867.0,0.001654]
[1727612012452,0.30857635,65868.0,65867.0,0.001654]
[1727612015689,0.33237648,65868.0,65867.0,0.001654]
[1727612019716,0.32237648,65868.0,65867.0,0.173154]
[1727612019963,0.21737648,65868.0,65867.0,0.173154]
[1727612020217,0.34761995,65868.0,65867.0,0.173154]
[1727612020459,0.19357635,65868.0,65867.0,0.173154]
[1727612020947,0.19157635,65868.0,65867.0,0.173154]
[1727612021201,0.32846897,65868.0,65867.0,0.173154]
[1727612021443,0.19157635,65868.0,65867.0,0.173154]
[1727612021671,0.19157635,65868.0,65867.0,0.176154]
[1727612021904,0.30560747,65868.0,65867.0,0.176154]
[1727612022213,0.19157635,65868.0,65867.0,0.176154]
[1727612022943,0.21537487,65868.0,65867.0,0.178154]
[1727612023180,0.32936492,65868.0,65867.0,0.178154]
[1727612023430,0.21537487,65868.0,65867.0,0.176154]
[1727612023914,0.21537487,65868.0,65867.0,0.181154]
[1727612024153,0.32933312,65868.0,65867.0,0.181154]
[1727612024400,0.21537487,65868.0,65867.0,0.181154]
[1727612025621,0.30650811,65868.0,65867.0,0.181154]
[1727612027311,0.28270959,65868.0,65867.0,0.181154]
[1727612027532,0.19157635,65868.0,65867.0,0.181154]
[1727612030567,0.19157635,65868.0,65867.0,0.173154]
[1727612030803,0.19157635,65868.0,65867.0,0.179154]
[1727612031524,0.25988189,65868.0,65867.0,0.179154]
[1727612031757,0.28368028,65868.0,65867.0,0.179154]
[1727612032222,0.28368028,65868.0,65867.0,0.175154]
[1727612032444,0.25988189,65868.0,65867.0,0.179154]
[1727612035583,0.28368033,65868.0,65867.0,0.179154]
[1727612035783,0.25988189,65868.0,65867.0,0.179154]
[1727612036443,0.19157635,65868.0,65867.0,0.179154]
[1727612038643,0.28366102,65868.0,65867.0,0.179154]
[1727612039332,0.42410149,65868.0,65867.0,0.179154]
[1727612040206,0.40030306,65868.0,65867.0,0.179154]
[1727612041064,0.33201682,65868.0,65867.0,0.179154]
[1727612041516,0.40030306,65868.0,65867.0,0.179154]
[1727612041908,0.33201682,65868.0,65867.0,0.179154]
[1727612042127,0.40030306,65868.0,65867.0,0.179154]
[1727612042539,0.33201682,65868.0,65867.0,0.179154]
[1727612043214,0.35581526,65868.0,65867.0,0.179154]
[1727612045136,0.21537479,65868.0,65867.0,0.179154]
[1727612047857,0.28365918,65868.0,65867.0,0.179154]
[1727612050433,0.25986074,65868.0,65867.0,0.179154]
[1727612050882,0.25986074,65868.0,65867.0,0.175154]
[1727612051303,0.26486074,65868.0,65867.0,0.175154]
[1727612051512,0.33463624,65868.0,65867.0,0.003654]
[1727612051721,0.4256821,65868.0,65867.0,0.003654]
[1727612051927,0.33463624,65868.0,65867.0,0.003654]
[1727612052360,0.33463624,65868.0,65867.0,0.004654]
[1727612052830,0.33463624,65868.0,65867.0,0.002654]
[1727612053046,0.33463624,65868.0,65867.0,0.001654]
[1727612053264,0.44844357,65868.0,65867.0,0.005654]
[1727612053915,0.47224223,65868.0,65867.0,0.005654]
[1727612054551,0.3584349,65868.0,65867.0,0.005654]
[1727612054982,0.33463624,65868.0,65867.0,0.005654]
[1727612056083,0.19657635,65868.0,65867.0,0.005654]
[1727612058080,0.22037491,65868.0,65867.0,0.005654]
[1727612059141,0.31149267,65868.0,65867.0,0.005654]
[1727612060705,0.22037491,65868.0,65867.0,0.005654]
[1727612061368,0.33427211,65868.0,65867.0,0.005654]
[1727612063121,0.31047355,65868.0,65867.0,0.005654]
[1727612063596,0.31054991,65868.0,65867.0,0.005654]
[1727612064052,0.19657635,65868.0,65867.0,0.005654]
[1727612066533,0.22037494,65868.0,65867.0,0.005654]
[1727612069410,0.22530474,65868.0,65867.0,0.005654]
[1727612073833,0.20150615,65868.0,65867.0,0.005654]
[1727612076909,0.2253048,65868.0,65867.0,0.005654]
[1727612078153,0.20150615,65868.0,65867.0,0.005654]
[1727612081444,0.22530479,65868.0,65867.0,0.005654]
[1727612082526,0.20150615,65868.0,65867.0,0.005654]
[1727612082731,0.32643208,65868.0,65867.0,0.005654]
[1727612082938,0.20150615,65868.0,65867.0,0.005654]
[1727612087277,0.22530481,65868.0,65867.0,0.001654]
[1727612087709,0.22530481,65868.0,65867.0,0.002654]
[1727612088190,0.22530481,65868.0,65867.0,0.001654]
[1727612089539,0.22630481,65868.0,65867.0,0.001654]
[1727612089765,0.35371083,65868.0,65867.0,0.001654]
[1727612090005,0.35871083,65868.0,65867.0,0.002654]
[1727612090231,0.36271083,65868.0,65867.0,0.002654]
[1727612090634,0.35871083,65868.0,65867.0,0.001654]
[1727612090856,0.35271083,65868.0,65867.0,0.001654]
[1727612091066,0.36071083,65868.0,65867.0,0.001654]
[1727612092385,0.35271083,65868.0,65867.0,0.001654]
[1727612092852,0.35271083,65868.0,65867.0,0.003654]
[1727612095869,0.35261083,65868.0,65867.0,0.003654]
[1727612096095,0.48948146,65868.0,65867.0,0.003654]
[1727612096302,0.22430481,65868.0,65867.0,0.003654]
[1727612096783,0.20040615,65868.0,65867.0,0.003654]
[1727612096995,0.29980615,65868.0,65867.0,0.003654]
[1727612097199,0.45358561,65868.0,65867.0,0.003654]
[1727612097451,0.29960615,65868.0,65867.0,0.003654]
[1727612097670,0.30140615,65868.0,65867.0,0.003654]
[1727612097889,0.30090615,65868.0,65867.0,0.003654]
[1727612098109,0.29870615,65868.0,65867.0,0.003654]
[1727612098549,0.29850615,65868.0,65867.0,0.003654]
[1727612098769,0.29790615,65868.0,65867.0,0.003654]
[1727612098986,0.29770615,65868.0,65867.0,0.003654]
[1727612099430,0.29750615,65868.0,65867.0,0.003654]
[1727612099655,0.32080568,65868.0,65867.0,0.003654]
[1727612099883,0.32070568,65868.0,65867.0,0.003654]
[1727612100439,0.32030568,65868.0,65867.0,0.003654]
[1727612100870,0.29650615,65868.0,65867.0,0.003654]
[1727612102184,0.29750615,65868.0,65867.0,0.001654]
[1727612102580,0.29750615,65868.0,65867.0,0.002654]
[1727612103006,0.29750615,65868.0,65867.0,0.001654]
[1727612103230,0.29750615,65868.0,65867.0,0.002654]
[1727612103856,0.3213056,65868.0,65867.0,0.002654]
[1727612106617,0.3213056,65868.0,65867.0,0.099254]
[1727612112229,0.29750615,65868.0,65867.0,0.099254]
[1727612112674,0.43429016,65868.0,65867.0,0.099254]
[1727612116675,0.45808941,65868.0,65867.0,0.099254]
[1727612118221,0.45809589,65868.0,65867.0,0.099254]
[1727612122898,0.3213054,65868.0,65867.0,0.099254]
[1727612123141,0.45810169,65868.0,65867.0,0.099254]